[Event "Live Chess"]
[Site "Chess.com"]
[Date "2023.05.21"]
[Round "-"]
[White "Olisingapore"]
[Black "GEMdzq"]
[Result "0-1"]
[WhiteElo "1810"]
[BlackElo "2222"]
[TimeControl "300"]
[EndTime "8:59:08 PDT"]
[Termination "GEMdzq won by resignation"]

1. d4 {[%clk 0:04:57.3]} 1... Nf6 {[%clk 0:04:58.5]} 2. c4 {[%clk 0:04:57.2]}
2... e6 {[%clk 0:04:57.3]} 3. g3 {[%clk 0:04:56.6]} 3... c5 {[%clk 0:04:55.8]}
4. Bg2 {[%clk 0:04:56.5]} 4... cxd4 {[%clk 0:04:54.8]} 5. Qxd4 {[%clk
0:04:55.1]} 5... Nc6 {[%clk 0:04:54]} 6. Qd1 {[%clk 0:04:54.3]} 6... Bb4+ {[%clk
0:04:53.1]} 7. Nd2 {[%clk 0:04:53]} 7... O-O {[%clk 0:04:51.1]} 8. Nf3 {[%clk
0:04:52.5]} 8... d5 {[%clk 0:04:49.9]} 9. O-O {[%clk 0:04:52.2]} 9... d4 {[%clk
0:04:42.2]} 10. a3 {[%clk 0:04:50.2]} 10... Bd6 {[%clk 0:04:38.1]} 11. Nb3
{[%clk 0:04:46.7]} 11... e5 {[%clk 0:04:37.3]} 12. Bg5 {[%clk 0:04:44.1]} 12...
h6 {[%clk 0:04:31.1]} 13. Bxf6 {[%clk 0:04:42.9]} 13... Qxf6 {[%clk 0:04:31]}
14. c5 {[%clk 0:04:42.2]} 14... Bc7 {[%clk 0:04:29.9]} 15. Nfd2 {[%clk
0:04:37.8]} 15... Be6 {[%clk 0:04:16.1]} 16. Ne4 {[%clk 0:04:35.5]} 16... Qe7
{[%clk 0:04:15.3]} 17. e3 {[%clk 0:04:32.2]} 17... Rad8 {[%clk 0:04:11.6]} 18.
exd4 {[%clk 0:04:11.8]} 18... Nxd4 {[%clk 0:04:06.9]} 19. Nxd4 {[%clk
0:04:09.1]} 19... Rxd4 {[%clk 0:04:06.8]} 20. Qc2 {[%clk 0:04:05.3]} 20... f5
{[%clk 0:04:00.2]} 21. Nd6 {[%clk 0:04:00.7]} 21... Bxd6 {[%clk 0:03:58.9]} 22.
cxd6 {[%clk 0:03:56.8]} 22... Rxd6 {[%clk 0:03:57.9]} 23. Rfd1 {[%clk
0:03:54.6]} 23... Rfd8 {[%clk 0:03:41.4]} 24. Rxd6 {[%clk 0:03:49.4]} 24... Rxd6
{[%clk 0:03:41.3]} 25. Rd1 {[%clk 0:03:47]} 25... e4 {[%clk 0:03:37.2]} 26. Rxd6
{[%clk 0:03:43.1]} 26... Qxd6 {[%clk 0:03:37.1]} 27. b4 {[%clk 0:03:41]} 27...
Qd4 {[%clk 0:03:31.1]} 28. Qc5 {[%clk 0:03:36.7]} 28... Qxc5 {[%clk 0:03:17.5]}
29. bxc5 {[%clk 0:03:35.4]} 29... Kf8 {[%clk 0:03:14.6]} 30. f3 {[%clk
0:03:32.7]} 30... Bd5 {[%clk 0:03:13.6]} 31. Kf1 {[%clk 0:03:32.3]} 31... exf3
{[%clk 0:03:10.9]} 32. Bh1 {[%clk 0:03:30.2]} 32... Ke7 {[%clk 0:03:09.5]} 33.
Kf2 {[%clk 0:03:29.5]} 33... Ke6 {[%clk 0:03:08.4]} 34. Bxf3 {[%clk 0:03:29.4]}
34... Bxf3 {[%clk 0:03:07.6]} 35. Kxf3 {[%clk 0:03:29.3]} 35... Kd5 {[%clk
0:03:06.7]} 36. Ke3 {[%clk 0:03:28.2]} 36... Kxc5 {[%clk 0:03:05]} 37. Kd3
{[%clk 0:03:27.7]} 37... b5 {[%clk 0:03:01.1]} 38. Kc3 {[%clk 0:03:26.8]} 38...
a5 {[%clk 0:03:00]} 39. Kb3 {[%clk 0:03:24.2]} 39... Kd4 {[%clk 0:02:58.2]} 40.
Kc2 {[%clk 0:03:20.5]} 40... Kc4 {[%clk 0:02:56.5]} 41. Kb2 {[%clk 0:03:19.9]}
41... g5 {[%clk 0:02:53.9]} 42. Kc2 {[%clk 0:03:19.5]} 42... f4 {[%clk 0:02:53]}
43. g4 {[%clk 0:03:18.2]} 43... f3 {[%clk 0:02:52.3]} 0-1

[Event "Live Chess"]
[Site "Chess.com"]
[Date "2023.05.21"]
[Round "-"]
[White "ChessClubLive"]
[Black "Bob2pen"]
[Result "1/2-1/2"]
[WhiteElo "1640"]
[BlackElo "1872"]
[TimeControl "300"]
[EndTime "8:59:14 PDT"]
[Termination "Game drawn by repetition"]

1. e4 {[%clk 0:04:58.3]} 1... e6 {[%clk 0:04:59.1]} 2. d4 {[%clk 0:04:55.4]}
2... d5 {[%clk 0:04:58.1]} 3. e5 {[%clk 0:04:54.6]} 3... c5 {[%clk 0:04:57.2]}
4. c3 {[%clk 0:04:54.1]} 4... Nc6 {[%clk 0:04:56.4]} 5. Nf3 {[%clk 0:04:53.7]}
5... Qb6 {[%clk 0:04:55.6]} 6. Bd3 {[%clk 0:04:53]} 6... Bd7 {[%clk 0:04:54.1]}
7. O-O {[%clk 0:04:52.3]} 7... cxd4 {[%clk 0:04:53]} 8. cxd4 {[%clk 0:04:51.7]}
8... Nxd4 {[%clk 0:04:52]} 9. Nc3 {[%clk 0:04:50.8]} 9... a6 {[%clk 0:04:45.4]}
10. Nxd4 {[%clk 0:04:49.9]} 10... Qxd4 {[%clk 0:04:44.1]} 11. Re1 {[%clk
0:04:42.6]} 11... h5 {[%clk 0:04:42.4]} 12. Be3 {[%clk 0:04:31.6]} 12... Qg4
{[%clk 0:04:40.8]} 13. Be2 {[%clk 0:04:27.8]} 13... Qh4 {[%clk 0:04:37.1]} 14.
g3 {[%clk 0:04:14.2]} 14... Qh3 {[%clk 0:04:33.3]} 15. Bf1 {[%clk 0:04:12.5]}
15... Qg4 {[%clk 0:04:29.6]} 16. f3 {[%clk 0:04:00.2]} 16... Qf5 {[%clk
0:04:25.2]} 17. Bd3 {[%clk 0:03:54.3]} 17... Qh3 {[%clk 0:04:23.3]} 18. Bf1
{[%clk 0:03:50.4]} 18... Qf5 {[%clk 0:04:21.7]} 19. Bd3 {[%clk 0:03:49.5]} 19...
Qh3 {[%clk 0:04:20.3]} 20. Bf1 {[%clk 0:03:47]} 20... Qf5 {[%clk 0:04:19]}
1/2-1/2

[Event "Live Chess"]
[Site "Chess.com"]
[Date "2023.05.21"]
[Round "-"]
[White "LL220284LL"]
[Black "TheSmoulderingMaster"]
[Result "1-0"]
[WhiteElo "2227"]
[BlackElo "1683"]
[TimeControl "300"]
[EndTime "8:59:16 PDT"]
[Termination "LL220284LL won by resignation"]

1. e3 {[%clk 0:04:56.7]} 1... d5 {[%clk 0:04:58.8]} 2. c4 {[%clk 0:04:55.6]}
2... dxc4 {[%clk 0:04:57.5]} 3. Bxc4 {[%clk 0:04:54.1]} 3... Nc6 {[%clk
0:04:56.7]} 4. Nf3 {[%clk 0:04:53.1]} 4... Nf6 {[%clk 0:04:55.5]} 5. d4 {[%clk
0:04:52.6]} 5... Bg4 {[%clk 0:04:53.2]} 6. O-O {[%clk 0:04:51.8]} 6... e6 {[%clk
0:04:51.9]} 7. h3 {[%clk 0:04:50.8]} 7... Bh5 {[%clk 0:04:50.7]} 8. Nc3 {[%clk
0:04:49.9]} 8... Bg6 {[%clk 0:04:49.7]} 9. Re1 {[%clk 0:04:48.5]} 9... Bd6
{[%clk 0:04:48]} 10. e4 {[%clk 0:04:47.9]} 10... Be7 {[%clk 0:04:46.2]} 11. e5
{[%clk 0:04:46.5]} 11... Nd5 {[%clk 0:04:44.9]} 12. a3 {[%clk 0:04:40]} 12...
O-O {[%clk 0:04:41.9]} 13. Bd3 {[%clk 0:04:38]} 13... Nxc3 {[%clk 0:04:39.8]}
14. bxc3 {[%clk 0:04:37]} 14... Bxd3 {[%clk 0:04:35.4]} 15. Qxd3 {[%clk
0:04:36.9]} 15... Qd5 {[%clk 0:04:30.4]} 16. Rb1 {[%clk 0:04:35.2]} 16... b6
{[%clk 0:04:27.7]} 17. Rb5 {[%clk 0:04:33.6]} 17... Qa2 {[%clk 0:04:23.9]} 18.
Re2 {[%clk 0:04:30.5]} 18... Qa1 {[%clk 0:04:22.1]} 19. Qc2 {[%clk 0:04:26.8]}
19... Bxa3 {[%clk 0:04:17.8]} 20. Rb1 {[%clk 0:04:25.8]} 20... Nxd4 {[%clk
0:04:04.9]} 21. Nxd4 {[%clk 0:04:22.4]} 21... Rad8 {[%clk 0:04:01.1]} 22. Rxa1
{[%clk 0:04:21.1]} 1-0

[Event "Live Chess"]
[Site "Chess.com"]
[Date "2023.05.21"]
[Round "-"]
[White "whitedjohn"]
[Black "EdenHazard8"]
[Result "0-1"]
[WhiteElo "1673"]
[BlackElo "1942"]
[TimeControl "300"]
[EndTime "8:59:18 PDT"]
[Termination "EdenHazard8 won by resignation"]

1. e4 {[%clk 0:04:56.9]} 1... c6 {[%clk 0:04:59.9]} 2. d4 {[%clk 0:04:55.4]}
2... d5 {[%clk 0:04:59.8]} 3. exd5 {[%clk 0:04:53.6]} 3... cxd5 {[%clk
0:04:59.7]} 4. Bd3 {[%clk 0:04:52.4]} 4... Nc6 {[%clk 0:04:58.9]} 5. c3 {[%clk
0:04:51.3]} 5... Qc7 {[%clk 0:04:58]} 6. Nf3 {[%clk 0:04:49.2]} 6... Bg4 {[%clk
0:04:57.5]} 7. O-O {[%clk 0:04:47.1]} 7... e6 {[%clk 0:04:56.7]} 8. Bg5 {[%clk
0:04:44.7]} 8... Bd6 {[%clk 0:04:55.8]} 9. h3 {[%clk 0:04:33]} 9... Bh5 {[%clk
0:04:54.9]} 10. Nbd2 {[%clk 0:04:29.4]} 10... Nge7 {[%clk 0:04:53.6]} 11. Qe2
{[%clk 0:04:10]} 11... O-O-O {[%clk 0:04:51.3]} 12. Bxe7 {[%clk 0:03:54.2]}
12... Nxe7 {[%clk 0:04:49.6]} 13. Qe3 {[%clk 0:03:52.3]} 13... h6 {[%clk
0:04:48]} 14. Rfe1 {[%clk 0:03:43.6]} 14... g5 {[%clk 0:04:47.1]} 15. Ne5 {[%clk
0:03:40.8]} 15... Bxe5 {[%clk 0:04:46.2]} 16. Qxe5 {[%clk 0:03:39.2]} 16... Qxe5
{[%clk 0:04:44.8]} 17. Rxe5 {[%clk 0:03:37.7]} 17... Ng6 {[%clk 0:04:43.4]} 18.
Bxg6 {[%clk 0:03:32.3]} 18... Bxg6 {[%clk 0:04:42.5]} 19. Rae1 {[%clk
0:03:24.6]} 19... Rd6 {[%clk 0:04:41.3]} 20. g4 {[%clk 0:03:13.4]} 20... Kb8
{[%clk 0:04:39.9]} 21. Kg2 {[%clk 0:03:11.5]} 21... Ra6 {[%clk 0:04:38.6]} 22.
a3 {[%clk 0:03:10.1]} 22... Rb6 {[%clk 0:04:38.1]} 23. b4 {[%clk 0:03:04.2]}
23... Rc8 {[%clk 0:04:37.6]} 24. R5e3 {[%clk 0:02:59]} 24... Rbc6 {[%clk
0:04:36.1]} 25. Rc1 {[%clk 0:02:55.6]} 25... Ra6 {[%clk 0:04:35]} 26. c4 {[%clk
0:02:50.1]} 26... dxc4 {[%clk 0:04:32.2]} 27. Rxc4 {[%clk 0:02:48.8]} 27... Rxc4
{[%clk 0:04:31]} 28. Nxc4 {[%clk 0:02:47.4]} 28... f6 {[%clk 0:04:22.1]} 29. b5
{[%clk 0:02:34.3]} 29... Ra4 {[%clk 0:04:20.8]} 30. Rc3 {[%clk 0:02:32.2]} 30...
Be4+ {[%clk 0:04:17.8]} 31. f3 {[%clk 0:02:23.1]} 31... Bd5 {[%clk 0:04:16.5]}
32. Ne3 {[%clk 0:02:10.3]} 32... Rxd4 {[%clk 0:04:14.6]} 33. Nxd5 {[%clk
0:02:05.4]} 33... Rxd5 {[%clk 0:04:14.5]} 34. a4 {[%clk 0:02:03.9]} 34... Rd4
{[%clk 0:04:13.5]} 35. Ra3 {[%clk 0:02:01.8]} 35... b6 {[%clk 0:04:11.6]} 36.
Kf2 {[%clk 0:02:00]} 36... Kc7 {[%clk 0:04:10.5]} 37. Ke3 {[%clk 0:01:58.8]}
37... e5 {[%clk 0:04:09.3]} 38. a5 {[%clk 0:01:55.3]} 38... Kd6 {[%clk
0:04:06.4]} 39. axb6 {[%clk 0:01:52.4]} 39... axb6 {[%clk 0:04:05.4]} 40. Ra7
{[%clk 0:01:48.6]} 40... Kc5 {[%clk 0:04:04]} 41. Rf7 {[%clk 0:01:45.5]} 41...
Rd6 {[%clk 0:04:02.3]} 42. Ke4 {[%clk 0:01:43.8]} 42... Kxb5 {[%clk 0:04:00.4]}
43. Kf5 {[%clk 0:01:43.4]} 43... Kc4 {[%clk 0:03:58]} 44. Rxf6 {[%clk
0:01:40.5]} 44... Rxf6+ {[%clk 0:03:56.9]} 45. Kxf6 {[%clk 0:01:39.8]} 45... b5
{[%clk 0:03:56.8]} 46. Kxe5 {[%clk 0:01:38.9]} 46... b4 {[%clk 0:03:56.3]} 0-1

[Event "Live Chess"]
[Site "Chess.com"]
[Date "2023.05.21"]
[Round "-"]
[White "Doge_Dandolo"]
[Black "ranvir123"]
[Result "1-0"]
[WhiteElo "1867"]
[BlackElo "985"]
[TimeControl "300"]
[EndTime "8:59:20 PDT"]
[Termination "Doge_Dandolo won by resignation"]

1. Nf3 {[%clk 0:04:56.3]} 1... e5 {[%clk 0:04:56.6]} 2. Nxe5 {[%clk 0:04:54.4]}
2... Nf6 {[%clk 0:04:53.8]} 3. d4 {[%clk 0:04:53.1]} 3... Qe7 {[%clk 0:04:51.5]}
4. Bf4 {[%clk 0:04:50.6]} 4... Qb4+ {[%clk 0:04:47.7]} 5. Nd2 {[%clk 0:04:44.4]}
5... Ne4 {[%clk 0:04:42.1]} 6. c3 {[%clk 0:04:39.7]} 6... Qxb2 {[%clk
0:04:38.7]} 7. Nxe4 {[%clk 0:04:38.2]} 7... f5 {[%clk 0:04:24.6]} 8. Nd2 {[%clk
0:04:27.3]} 8... Qxc3 {[%clk 0:04:21.8]} 9. e3 {[%clk 0:04:25.5]} 9... Bb4
{[%clk 0:04:13.4]} 10. Be2 {[%clk 0:04:21.6]} 10... d6 {[%clk 0:04:04.9]} 11.
Nf3 {[%clk 0:04:19.8]} 11... Qxa1 {[%clk 0:03:44.1]} 1-0

[Event "Live Chess"]
[Site "Chess.com"]
[Date "2023.05.21"]
[Round "-"]
[White "Alfiedog12"]
[Black "BillythekidFellowes"]
[Result "0-1"]
[WhiteElo "867"]
[BlackElo "2120"]
[TimeControl "300"]
[EndTime "8:59:49 PDT"]
[Termination "BillythekidFellowes won by resignation"]

1. d4 {[%clk 0:04:56.3]} 1... e6 {[%clk 0:04:59.9]} 2. Bf4 {[%clk 0:04:55.2]}
2... c5 {[%clk 0:04:59.2]} 3. Nf3 {[%clk 0:04:54.8]} 3... cxd4 {[%clk
0:04:58.8]} 4. Nxd4 {[%clk 0:04:53.4]} 4... Qb6 {[%clk 0:04:58.1]} 5. Nc3 {[%clk
0:04:42]} 5... Bc5 {[%clk 0:04:55]} 6. e3 {[%clk 0:04:31.6]} 6... Qxb2 {[%clk
0:04:53.8]} 7. Rb1 {[%clk 0:04:28.3]} 7... Qxc3+ {[%clk 0:04:52]} 8. Qd2 {[%clk
0:04:12.7]} 8... Bxd4 {[%clk 0:04:50.5]} 9. Qxc3 {[%clk 0:04:11.1]} 9... Bxc3+
{[%clk 0:04:50.4]} 10. Kd1 {[%clk 0:04:10.4]} 10... Nc6 {[%clk 0:04:49.7]} 11.
Bc4 {[%clk 0:04:08.3]} 11... d5 {[%clk 0:04:47.6]} 12. Bb5 {[%clk 0:04:05.3]}
12... Nf6 {[%clk 0:04:46.4]} 13. Bxc6+ {[%clk 0:04:02.5]} 13... bxc6 {[%clk
0:04:45.6]} 14. Bg5 {[%clk 0:03:49.9]} 14... Ne4 {[%clk 0:04:41]} 15. Bf4 {[%clk
0:03:44.7]} 15... Ba6 {[%clk 0:04:39.1]} 16. Rb8+ {[%clk 0:03:35.9]} 16... Rxb8
{[%clk 0:04:38.1]} 17. Bxb8 {[%clk 0:03:34.8]} 17... Nxf2+ {[%clk 0:04:36.9]}
0-1

[Event "Live Chess"]
[Site "Chess.com"]
[Date "2023.05.21"]
[Round "-"]
[White "boilerboy1"]
[Black "profpirate4"]
[Result "0-1"]
[WhiteElo "1051"]
[BlackElo "1342"]
[TimeControl "300"]
[EndTime "8:59:50 PDT"]
[Termination "profpirate4 won on time"]

1. e4 {[%clk 0:04:53.8]} 1... c5 {[%clk 0:04:59]} 2. c4 {[%clk 0:04:52.1]} 2...
d6 {[%clk 0:04:58.9]} 3. d3 {[%clk 0:04:51.2]} 3... Nc6 {[%clk 0:04:57.7]} 4.
Nf3 {[%clk 0:04:50.4]} 4... g6 {[%clk 0:04:54]} 5. Nc3 {[%clk 0:04:49.5]} 5...
Bg7 {[%clk 0:04:53.2]} 6. Bd2 {[%clk 0:04:47.8]} 6... e6 {[%clk 0:04:51]} 7. Be2
{[%clk 0:04:45.7]} 7... Nge7 {[%clk 0:04:50.1]} 8. O-O {[%clk 0:04:43.5]} 8...
a6 {[%clk 0:04:49]} 9. Re1 {[%clk 0:04:39.6]} 9... O-O {[%clk 0:04:48.3]} 10.
Rb1 {[%clk 0:04:37.4]} 10... b5 {[%clk 0:04:47.5]} 11. cxb5 {[%clk 0:04:35.4]}
11... axb5 {[%clk 0:04:44]} 12. Nxb5 {[%clk 0:04:33.5]} 12... Rb8 {[%clk
0:04:41]} 13. a4 {[%clk 0:04:30.2]} 13... Ba6 {[%clk 0:04:30.9]} 14. Nc3 {[%clk
0:04:10.9]} 14... Nb4 {[%clk 0:04:14.4]} 15. Bg5 {[%clk 0:03:58.7]} 15... Qc7
{[%clk 0:04:08.2]} 16. Bh4 {[%clk 0:03:35.3]} 16... Nec6 {[%clk 0:03:55.5]} 17.
Bg3 {[%clk 0:03:18.1]} 17... Qd7 {[%clk 0:03:49.2]} 18. Nb5 {[%clk 0:03:07.8]}
18... Bxb5 {[%clk 0:03:45.8]} 19. axb5 {[%clk 0:03:05.4]} 19... Rxb5 {[%clk
0:03:44.9]} 20. d4 {[%clk 0:03:02.5]} 20... cxd4 {[%clk 0:03:43.4]} 21. Bxb5
{[%clk 0:03:00.3]} 21... Qb7 {[%clk 0:03:38.8]} 22. Ba4 {[%clk 0:02:39.5]} 22...
Ne5 {[%clk 0:03:34.3]} 23. Nxe5 {[%clk 0:02:36.3]} 23... dxe5 {[%clk 0:03:32.8]}
24. b3 {[%clk 0:02:27.3]} 24... Qa6 {[%clk 0:03:27.4]} 25. Qd2 {[%clk
0:02:19.3]} 25... Nd3 {[%clk 0:03:23.6]} 26. Rf1 {[%clk 0:02:06.5]} 26... Nc5
{[%clk 0:03:14.1]} 27. Qb4 {[%clk 0:02:00.9]} 27... Nxe4 {[%clk 0:03:09.1]} 28.
Bh4 {[%clk 0:01:46.8]} 28... Qa7 {[%clk 0:02:51.5]} 29. Be7 {[%clk 0:01:36.1]}
29... Rb8 {[%clk 0:02:47.8]} 30. Qa3 {[%clk 0:01:16.9]} 30... Nd2 {[%clk
0:02:42.7]} 31. Bc5 {[%clk 0:00:37.2]} 31... Qa6 {[%clk 0:02:12.3]} 32. Bd6
{[%clk 0:00:33.2]} 32... Nxb1 {[%clk 0:02:07.2]} 33. Rxb1 {[%clk 0:00:29.8]}
33... Qd3 {[%clk 0:02:01.4]} 34. Rf1 {[%clk 0:00:17.7]} 34... Rd8 {[%clk
0:01:52.9]} 35. Be7 {[%clk 0:00:13.1]} 35... Rd5 {[%clk 0:01:45]} 36. Bc6 {[%clk
0:00:01.9]} 36... h5 {[%clk 0:01:22]} 0-1

[Event "Live Chess"]
[Site "Chess.com"]
[Date "2023.05.21"]
[Round "-"]
[White "Grookey2012"]
[Black "Misha145Chess"]
[Result "0-1"]
[WhiteElo "568"]
[BlackElo "627"]
[TimeControl "300"]
[EndTime "8:59:50 PDT"]
[Termination "Misha145Chess won by resignation"]

1. e4 {[%clk 0:04:58.4]} 1... e5 {[%clk 0:04:59.1]} 2. Nf3 {[%clk 0:04:57.4]}
2... Nc6 {[%clk 0:04:58.4]} 3. Bc4 {[%clk 0:04:54.3]} 3... h6 {[%clk 0:04:56.2]}
4. d3 {[%clk 0:04:53.4]} 4... Nf6 {[%clk 0:04:55.3]} 5. Nc3 {[%clk 0:04:45.8]}
5... Bc5 {[%clk 0:04:53.4]} 6. d4 {[%clk 0:04:40.7]} 6... exd4 {[%clk
0:04:51.3]} 7. O-O {[%clk 0:04:40.6]} 7... dxc3 {[%clk 0:04:48.9]} 8. Qe2 {[%clk
0:04:40.5]} 8... cxb2 {[%clk 0:04:47.2]} 9. Bxb2 {[%clk 0:04:31.1]} 9... O-O
{[%clk 0:04:42.6]} 10. Nh4 {[%clk 0:04:24]} 10... d6 {[%clk 0:04:33.3]} 11. e5
{[%clk 0:03:43.8]} 11... Nxe5 {[%clk 0:04:26.3]} 12. Bxe5 {[%clk 0:03:39.5]}
12... dxe5 {[%clk 0:04:25.7]} 13. Qxe5 {[%clk 0:03:39.1]} 13... Bd4 {[%clk
0:04:21.2]} 14. Qg3 {[%clk 0:03:29.3]} 14... Bxa1 {[%clk 0:04:14.8]} 15. Nf5
{[%clk 0:03:24.7]} 15... Bxf5 {[%clk 0:04:10.4]} 16. Bxf7+ {[%clk 0:03:21.1]}
16... Rxf7 {[%clk 0:04:09]} 17. Qb3 {[%clk 0:03:21]} 17... Be5 {[%clk
0:04:00.5]} 18. Qxb7 {[%clk 0:03:20.9]} 18... Qd6 {[%clk 0:03:58.3]} 19. Qxa8+
{[%clk 0:03:18.8]} 19... Kh7 {[%clk 0:03:57.4]} 20. f4 {[%clk 0:03:16.4]} 20...
Bxf4 {[%clk 0:03:55.2]} 21. Rf3 {[%clk 0:03:16.3]} 21... Bxh2+ {[%clk
0:03:52.2]} 22. Kh1 {[%clk 0:03:13.6]} 22... Be4 {[%clk 0:03:45.1]} 0-1

[Event "Live Chess"]
[Site "Chess.com"]
[Date "2023.05.21"]
[Round "-"]
[White "alanmike75"]
[Black "JanMur7"]
[Result "0-1"]
[WhiteElo "1598"]
[BlackElo "1954"]
[TimeControl "300"]
[EndTime "8:59:53 PDT"]
[Termination "JanMur7 won by resignation"]

1. e4 {[%clk 0:04:57.6]} 1... e5 {[%clk 0:04:59]} 2. Nf3 {[%clk 0:04:56.4]} 2...
Nc6 {[%clk 0:04:58.6]} 3. Bb5 {[%clk 0:04:54.1]} 3... Nf6 {[%clk 0:04:57.8]} 4.
d3 {[%clk 0:04:52.7]} 4... Ne7 {[%clk 0:04:55.1]} 5. Nxe5 {[%clk 0:04:43.9]}
5... c6 {[%clk 0:04:53.9]} 6. Nxf7 {[%clk 0:04:23.4]} 6... Kxf7 {[%clk
0:04:51.9]} 7. Bc4+ {[%clk 0:04:22.2]} 7... d5 {[%clk 0:04:50.9]} 8. exd5 {[%clk
0:04:21.1]} 8... cxd5 {[%clk 0:04:50.8]} 9. Bb3 {[%clk 0:04:19.9]} 9... Bg4
{[%clk 0:04:49.4]} 10. f3 {[%clk 0:04:17.9]} 10... Bh5 {[%clk 0:04:47]} 11. O-O
{[%clk 0:04:16.6]} 11... Nc6 {[%clk 0:04:36.1]} 12. Nc3 {[%clk 0:04:12.4]} 12...
Bc5+ {[%clk 0:04:34.5]} 13. Kh1 {[%clk 0:04:09.9]} 13... Re8 {[%clk 0:04:33]}
14. Bg5 {[%clk 0:04:06.9]} 14... Re5 {[%clk 0:04:22.3]} 15. f4 {[%clk
0:03:44.7]} 15... Bxd1 {[%clk 0:04:17.6]} 0-1

[Event "Live Chess"]
[Site "Chess.com"]
[Date "2023.05.21"]
[Round "-"]
[White "LiamClery2020"]
[Black "domrobson"]
[Result "1-0"]
[WhiteElo "1998"]
[BlackElo "1801"]
[TimeControl "300"]
[EndTime "8:59:53 PDT"]
[Termination "LiamClery2020 won by resignation"]

1. e4 {[%clk 0:04:59]} 1... e5 {[%clk 0:04:35.4]} 2. Nc3 {[%clk 0:04:57.8]} 2...
Nf6 {[%clk 0:04:34.1]} 3. f4 {[%clk 0:04:56.1]} 3... Nc6 {[%clk 0:04:32.1]} 4.
fxe5 {[%clk 0:04:54.1]} 4... Ng4 {[%clk 0:04:29.1]} 5. Qxg4 {[%clk 0:04:52.6]}
5... Qh4+ {[%clk 0:04:28.6]} 6. Qxh4 {[%clk 0:04:51.7]} 6... f6 {[%clk
0:04:28.5]} 7. exf6 {[%clk 0:04:50]} 7... gxf6 {[%clk 0:04:27.4]} 8. Qxf6 {[%clk
0:04:48.5]} 8... Bh6 {[%clk 0:04:27.3]} 9. Qxh8+ {[%clk 0:04:47.5]} 9... Kf7
{[%clk 0:04:26]} 10. Qxh7+ {[%clk 0:04:47]} 10... Kf6 {[%clk 0:04:23.9]} 11.
Qxh6+ {[%clk 0:04:44.8]} 1-0

[Event "Live Chess"]
[Site "Chess.com"]
[Date "2023.05.21"]
[Round "-"]
[White "HoarseyHorsey"]
[Black "Bot_Boy"]
[Result "1-0"]
[WhiteElo "1468"]
[BlackElo "332"]
[TimeControl "300"]
[EndTime "8:59:54 PDT"]
[Termination "HoarseyHorsey won on time"]

1. d4 {[%clk 0:04:59]} 1... b5 {[%clk 0:04:57.7]} 2. e4 {[%clk 0:04:57.1]} 2...
a6 {[%clk 0:04:56.1]} 3. Nf3 {[%clk 0:04:55.5]} 3... Bb7 {[%clk 0:04:54.5]} 4.
Bd3 {[%clk 0:04:53.6]} 4... d5 {[%clk 0:04:49.9]} 5. e5 {[%clk 0:04:52.1]} 5...
Nc6 {[%clk 0:04:44.7]} 6. c3 {[%clk 0:04:50]} 6... e6 {[%clk 0:04:36]} 7. O-O
{[%clk 0:04:45.2]} 7... a5 {[%clk 0:04:33.5]} 8. Bf4 {[%clk 0:04:40.1]} 8... Ba6
{[%clk 0:04:21.9]} 9. Nbd2 {[%clk 0:04:34.8]} 9... b4 {[%clk 0:04:16.2]} 10.
Bxa6 {[%clk 0:04:33.4]} 10... Rxa6 {[%clk 0:04:13.1]} 11. Rc1 {[%clk 0:04:28.5]}
11... a4 {[%clk 0:04:02]} 12. cxb4 {[%clk 0:04:12.5]} 12... Nxb4 {[%clk
0:03:56.6]} 13. b3 {[%clk 0:04:05.2]} 13... Nd3 {[%clk 0:03:53.6]} 14. Nb1
{[%clk 0:03:47.4]} 14... Nxf4 {[%clk 0:03:46]} 15. bxa4 {[%clk 0:03:43.4]} 15...
Bb4 {[%clk 0:03:28.8]} 16. Nc3 {[%clk 0:03:40.3]} 16... Bxc3 {[%clk 0:03:08.5]}
17. Rxc3 {[%clk 0:03:35.4]} 17... c6 {[%clk 0:02:58.2]} 18. Kh1 {[%clk
0:03:28.4]} 18... Ne7 {[%clk 0:02:41.6]} 19. Qd2 {[%clk 0:03:27]} 19... Nfg6
{[%clk 0:02:14.2]} 20. Rfc1 {[%clk 0:03:20.9]} 20... O-O {[%clk 0:02:08.9]} 21.
Qc2 {[%clk 0:03:14.8]} 21... Qc8 {[%clk 0:01:55.3]} 22. Rc5 {[%clk 0:03:07.1]}
22... Rd8 {[%clk 0:01:14.4]} 23. Nd2 {[%clk 0:03:01.3]} 23... Rd7 {[%clk
0:00:53.7]} 24. Nb3 {[%clk 0:02:58.2]} 24... Rxa4 {[%clk 0:00:36.3]} 25. Na5
{[%clk 0:02:51.7]} 25... Ra3 {[%clk 0:00:19.7]} 26. Nxc6 {[%clk 0:02:47.1]}
26... Nxc6 {[%clk 0:00:15.6]} 27. Rxc6 {[%clk 0:02:47]} 27... Qe8 {[%clk
0:00:04.7]} 28. Rc8 {[%clk 0:02:35.2]} 28... Rd8 {[%clk 0:00:03.7]} 29. Qc5
{[%clk 0:02:30.4]} 29... Rxc8 {[%clk 0:00:00.9]} 30. Qxc8 {[%clk 0:02:30]} 1-0